bitfinex-derivatives/quotes_BTCF0:USTF0_20250719
["timestamp","ask_amount","ask_price","bid_price","bid_amount"]
[1752889955188,0.59963852,118180.0,118170.0,1.04232499]
[1752889955691,0.59963852,118180.0,118170.0,1.14866138]
[1752889956292,0.49330213,118180.0,118170.0,1.14866138]
[1752889957092,0.59963852,118180.0,118170.0,1.14866138]
[1752889957295,0.59963852,118180.0,118170.0,0.78786138]
[1752889957788,0.53877464,118180.0,118170.0,0.78786138]
[1752889957989,0.61492529,118180.0,118170.0,0.78786138]
[1752889959098,0.61492529,118180.0,118170.0,1.14866138]
[1752889959292,0.61492529,118180.0,118170.0,0.78786138]
[1752889959687,0.61492529,118180.0,118170.0,1.14866138]
[1752889959893,0.61492529,118180.0,118170.0,0.78786138]
[1752889960398,0.61492529,118180.0,118170.0,1.14866138]
[1752889964395,0.61492529,118180.0,118170.0,1.08009611]
[1752889964600,0.59837783,118180.0,118170.0,1.08009611]
[1752889966401,0.59837783,118180.0,118170.0,0.86742333]
[1752889966599,0.59837783,118180.0,118170.0,1.08009611]
[1752889967503,0.32990505,118180.0,118170.0,1.1864325]
[1752889967996,0.01538,118180.0,118170.0,1.50544167]
[1752889968300,0.003,118180.0,118170.0,1.1864325]
[1752889968499,0.003,118180.0,118170.0,1.4816325]
[1752889968799,0.06388504,118180.0,118170.0,1.4816325]
[1752889969100,0.06288504,118180.0,118170.0,1.4816325]
[1752889969396,0.07502504,118180.0,118170.0,1.4816325]
[1752889969596,0.11563504,118180.0,118170.0,1.4816325]
[1752889970101,0.31315944,118180.0,118170.0,1.4816325]
[1752889971501,0.14404504,118180.0,118170.0,1.4816325]
[1752889971696,0.31315944,118180.0,118170.0,1.4816325]
[1752889972502,0.31315944,118180.0,118170.0,1.8424325]
[1752889973097,0.14404504,118180.0,118170.0,1.8424325]
[1752889973401,0.07302504,118180.0,118170.0,2.16144167]
[1752889973601,0.06088504,118180.0,118170.0,2.16144167]
[1752889974103,0.06088504,118180.0,118170.0,1.8424325]
[1752889975001,0.06088504,118180.0,118170.0,2.16144167]
[1752889975502,0.41297355,118190.0,118180.0,0.1691143]
[1752889975696,0.3368229,118190.0,118180.0,0.96251347]
[1752889975900,0.4430612,118190.0,118180.0,0.96251347]
[1752889976609,0.4450612,118190.0,118180.0,0.96251347]
[1752889976802,0.4701812,118190.0,118180.0,0.96251347]
[1752889977003,0.4956212,118190.0,118180.0,0.96251347]
[1752889977202,0.4956212,118190.0,118180.0,0.85617708]
[1752889977707,0.60295759,118190.0,118180.0,0.6435043]
[1752889977900,0.60295759,118190.0,118180.0,0.85617708]
[1752889978305,0.4966212,118190.0,118180.0,0.85617708]
[1752889978698,0.60295759,118190.0,118180.0,0.85617708]
[1752889979014,0.56068199,118190.0,118180.0,0.85617708]
[1752889979712,0.56068199,118190.0,118180.0,0.86595478]
[1752889979910,0.51840679,118190.0,118180.0,0.86595478]
[1752889980214,0.51840679,118190.0,118180.0,0.50515478]
[1752889980410,0.51840679,118190.0,118180.0,0.86595478]
[1752889980711,0.24305639,118190.0,118180.0,0.86595478]
[1752889981012,0.34956641,118190.0,118180.0,0.86595478]
[1752889981311,0.51866651,118190.0,118180.0,0.86595478]
[1752889981513,0.24323002,118190.0,118180.0,0.86595478]
[1752889981811,0.21779002,118190.0,118180.0,0.97229117]
[1752889982912,0.41233002,118190.0,118180.0,0.97229117]
[1752889984711,0.24323002,118190.0,118180.0,0.97229117]
[1752889984913,0.41233002,118190.0,118180.0,0.97229117]
[1752889985711,0.48840441,118190.0,118180.0,0.97229117]
[1752889985911,0.38189439,118190.0,118180.0,0.97229117]
[1752889986511,0.16223439,118190.0,118180.0,0.97229117]
[1752889987808,0.33133439,118190.0,118180.0,0.97229117]
[1752889989212,0.16223439,118190.0,118180.0,0.97229117]
[1752889989617,0.33133449,118190.0,118180.0,0.653282]
[1752889989818,0.33133449,118190.0,118180.0,0.97229117]
[1752889991823,0.16223439,118190.0,118180.0,0.97229117]
[1752889994432,0.16223439,118190.0,118180.0,0.61149117]
[1752889994731,0.16223439,118190.0,118180.0,0.97229117]
[1752889995525,0.16223439,118190.0,118180.0,0.653282]
[1752889995930,0.16223439,118190.0,118180.0,0.97229117]
[1752890000232,0.16223439,118190.0,118180.0,0.653282]
[1752890000530,0.16223439,118190.0,118180.0,0.97229117]
[1752890000733,0.25526,118190.0,118180.0,0.97229117]
[1752890001130,0.08616,118190.0,118180.0,0.97229117]
[1752890003137,0.11128,118190.0,118180.0,0.97229117]
[1752890004736,0.18735439,118190.0,118180.0,0.97229117]
[1752890005131,0.35645439,118190.0,118180.0,0.97229117]
[1752890006637,0.16848439,118190.0,118180.0,0.97229117]
[1752890006937,0.33133439,118190.0,118180.0,0.97229117]
[1752890007539,0.25526,118190.0,118180.0,0.97229117]
[1752890007737,0.28122,118190.0,118180.0,0.97229117]
[1752890008039,0.30617,118190.0,118180.0,0.97229117]
[1752890008232,0.38224439,118190.0,118180.0,0.97229117]
[1752890008838,0.38224439,118190.0,118180.0,0.653282]
[1752890009138,0.48858078,118190.0,118180.0,0.86595478]
[1752890012330,0.38224439,118190.0,118180.0,0.86595478]
[1752890012535,0.48858078,118190.0,118180.0,0.86595478]
[1752890012739,0.38224439,118190.0,118180.0,0.86595478]
[1752890012941,0.48858078,118190.0,118180.0,0.86595478]
[1752890014945,0.55567109,118190.0,118180.0,0.86595478]
[1752890015145,0.55567109,118190.0,118180.0,0.97229117]
[1752890016544,0.4493347,118190.0,118180.0,0.97229117]
[1752890016740,0.31948078,118190.0,118180.0,0.97229117]
[1752890016940,0.21314439,118190.0,118180.0,0.97229117]
[1752890017144,0.38224439,118190.0,118180.0,0.97229117]
[1752890017345,0.30617,118190.0,118180.0,0.97229117]
[1752890017846,0.30617,118190.0,118180.0,0.94478369]
[1752890018246,0.41268002,118190.0,118180.0,0.94478369]
[1752890021648,0.30617,118190.0,118180.0,0.94478369]
[1752890023444,0.41250639,118190.0,118180.0,0.94478369]
[1752890023846,0.32301398,118190.0,118180.0,0.94478369]
[1752890024047,0.42935037,118190.0,118180.0,0.94478369]
[1752890024253,0.53586039,118190.0,118180.0,0.94478369]
[1752890024553,0.429524,118190.0,118180.0,0.94478369]
[1752890024754,0.32301398,118190.0,118180.0,0.94478369]
[1752890025349,0.32301398,118190.0,118180.0,0.58398369]
[1752890025555,0.32301398,118190.0,118180.0,0.80317687]
[1752890025754,0.32301398,118190.0,118180.0,0.97229117]
[1752890026155,0.26963398,118190.0,118180.0,0.97229117]
[1752890026954,0.32054398,118190.0,118180.0,0.97229117]
[1752890029357,0.42717091,118190.0,118180.0,0.97229117]
[1752890029856,0.42717091,118190.0,118180.0,1.26413117]
[1752890031064,0.32054398,118190.0,118180.0,1.26413117]
[1752890032161,0.15144398,118190.0,118180.0,1.26413117]
[1752890032363,0.32054398,118190.0,118180.0,1.26413117]
[1752890033862,0.32054398,118190.0,118180.0,0.90333117]
[1752890034055,0.32054398,118190.0,118180.0,1.26413117]
[1752890035562,0.39670791,118190.0,118180.0,1.26413117]
[1752890038062,0.32054398,118190.0,118180.0,1.26413117]
[1752890038263,0.39670822,118190.0,118180.0,1.26413117]
[1752890040363,0.32054398,118190.0,118180.0,1.26413117]
[1752890041463,0.39670779,118190.0,118180.0,1.26413117]
[1752890043264,0.22760779,118190.0,118180.0,1.26413117]
[1752890044960,0.39670779,118190.0,118180.0,0.945122]
[1752890045165,0.39670779,118190.0,118180.0,1.26413117]
[1752890046567,0.32054398,118190.0,118180.0,1.26413117]
[1752890047066,0.39670968,118190.0,118180.0,1.26413117]
[1752890048568,0.32054398,118190.0,118180.0,1.26413117]
[1752890050268,0.39671008,118190.0,118180.0,1.26413117]
[1752890051269,0.32054398,118190.0,118180.0,1.26413117]
[1752890051766,0.32054398,118190.0,118180.0,0.945122]
[1752890051967,0.32054398,118190.0,118180.0,1.26413117]
[1752890053570,0.39671047,118190.0,118180.0,1.26413117]
[1752890053774,0.32054398,118190.0,118180.0,1.26413117]
[1752890054663,0.39671188,118190.0,118180.0,1.26413117]
[1752890057071,0.32054398,118190.0,118180.0,1.26413117]
[1752890057272,0.32054398,118190.0,118180.0,0.945122]
[1752890057570,0.3967111,118190.0,118180.0,1.26413117]
[1752890059870,0.3967111,118190.0,118180.0,0.945122]
[1752890060169,0.3967111,118190.0,118180.0,1.26413117]
[1752890061062,0.32054398,118190.0,118180.0,1.26413117]
[1752890061468,0.42717348,118190.0,118180.0,1.26413117]
[1752890061866,0.32054398,118190.0,118180.0,1.26413117]
[1752890063671,0.32054398,118190.0,118180.0,1.23662379]
[1752890064771,0.32054398,118190.0,118180.0,0.93117462]
[1752890065276,0.32054398,118190.0,118180.0,1.25018379]
[1752890065578,0.15144398,118190.0,118180.0,1.13592248]
[1752890065974,0.15144398,118190.0,118180.0,1.14542734]
[1752890066476,0.32054398,118190.0,118180.0,1.14542734]
[1752890066774,0.2580764,118190.0,118180.0,1.14542734]
[1752890066974,0.4271764,118190.0,118180.0,1.14542734]
[1752890070281,0.2580764,118190.0,118180.0,1.14542734]
[1752890070580,0.4271764,118190.0,118180.0,1.14542734]
[1752890072678,0.2580764,118190.0,118180.0,1.14542734]
[1752890072878,0.4271764,118190.0,118180.0,1.14542734]
[1752890073180,0.4271764,118190.0,118180.0,1.14518734]
[1752890075578,0.50334252,118190.0,118180.0,1.14518734]
[1752890075778,0.3967101,118190.0,118180.0,1.14518734]
[1752890086796,0.32054398,118190.0,118180.0,1.14518734]
[1752890088394,0.39670944,118190.0,118180.0,1.14518734]
[1752890089995,0.39670944,118190.0,118180.0,0.82617817]
[1752890090188,0.39670944,118190.0,118180.0,1.14518734]
[1752890090394,0.50304583,118190.0,118180.0,1.03885095]
[1752890090897,0.42688037,118190.0,118180.0,1.03885095]
[1752890091100,0.42688037,118190.0,118180.0,1.14518734]
[1752890092099,0.32054398,118190.0,118180.0,0.82617817]
[1752890092401,0.42688037,118190.0,118180.0,1.03885095]
[1752890092800,0.32054398,118190.0,118180.0,1.03885095]
[1752890093098,0.42688037,118190.0,118180.0,1.03885095]
[1752890093300,0.42688037,118190.0,118180.0,1.14518734]
[1752890093599,0.50304624,118190.0,118180.0,1.14518734]
[1752890094102,0.42688037,118190.0,118180.0,1.14518734]
[1752890094600,0.5030461,118190.0,118180.0,1.14518734]
[1752890096501,0.56953192,118190.0,118180.0,1.14518734]
[1752890098402,0.5030461,118190.0,118180.0,1.14518734]
[1752890100306,0.42688037,118190.0,118180.0,1.14518734]
[1752890101307,0.49626316,118190.0,118180.0,1.14518734]
[1752890102203,0.57242817,118190.0,118180.0,1.14518734]
[1752890103108,0.46609178,118190.0,118180.0,1.14518734]
[1752890103304,0.57242817,118190.0,118180.0,1.14518734]
[1752890103607,0.46609178,118190.0,118180.0,1.14518734]
[1752890103999,0.57242817,118190.0,118180.0,1.14518734]
[1752890104705,0.46609178,118190.0,118180.0,1.14518734]
[1752890107112,0.57242817,118190.0,118180.0,1.14518734]
[1752890108005,0.46609178,118190.0,118180.0,1.14518734]
[1752890108206,0.57242817,118190.0,118180.0,1.14518734]
[1752890109712,0.46609178,118190.0,118180.0,1.14518734]
[1752890110009,0.57242817,118190.0,118180.0,1.14518734]
[1752890111911,0.46609178,118190.0,118180.0,1.14518734]
[1752890115815,0.38992677,118190.0,118180.0,0.99447403]
[1752890116010,0.49655799,118190.0,118180.0,1.16358833]
[1752890117918,0.49655799,118190.0,118180.0,0.80278833]
[1752890118118,0.49655799,118190.0,118180.0,1.16358833]
[1752890118817,0.60289438,118190.0,118180.0,1.16358833]
[1752890119718,0.60289438,118190.0,118180.0,0.80278833]
[1752890119919,0.60289438,118190.0,118180.0,1.16358833]
[1752890120919,0.60289438,118190.0,118180.0,0.80278833]
[1752890121219,0.60289438,118190.0,118180.0,1.16358833]
[1752890121817,0.60289438,118190.0,118180.0,0.80278833]
[1752890122115,0.60289438,118190.0,118180.0,1.16358833]
[1752890123720,0.49655799,118190.0,118180.0,1.16358833]
[1752890125219,0.49655799,118190.0,118180.0,0.84457916]
[1752890125419,0.49655799,118190.0,118180.0,1.16358833]
[1752890125713,0.57272694,118190.0,118180.0,0.80278833]
[1752890125920,0.46609572,118190.0,118180.0,1.16358833]
[1752890126319,0.46609572,118190.0,118180.0,0.34207403]
[1752890126522,0.6787685,118190.0,118180.0,0.42068125]
[1752890126716,0.60259955,118190.0,118180.0,0.42068125]
[1752890126917,0.67877583,118190.0,118180.0,0.42068125]
[1752890127827,0.3002187,118180.0,118170.0,0.01874239]
[1752890128021,0.68015564,118180.0,118170.0,0.31002239]
[1752890128627,0.61922787,118180.0,118170.0,0.31002239]
[1752890129025,0.61922787,118180.0,118170.0,0.29128]
[1752890129225,0.62022787,118180.0,118170.0,0.29128]
[1752890129423,0.68111521,118180.0,118170.0,0.29128]
[1752890130427,0.57477882,118180.0,118170.0,0.39761639]
[1752890131520,0.68111521,118180.0,118170.0,0.39761639]
[1752890132128,0.57477882,118180.0,118170.0,0.39761639]
[1752890132428,0.68111521,118180.0,118170.0,0.29128]
[1752890134527,0.62022787,118180.0,118170.0,0.39761639]
[1752890134728,0.51389148,118180.0,118170.0,0.39761639]
[1752890135534,0.48373137,118180.0,118170.0,0.39761639]
[1752890135732,0.59006776,118180.0,118170.0,0.39761639]
[1752890135934,0.48373137,118180.0,118170.0,0.50395278]
[1752890137439,0.37739498,118180.0,118170.0,0.50395278]
[1752890137640,0.48373137,118180.0,118170.0,0.50395278]
[1752890138843,0.48373137,118180.0,118170.0,0.86475278]
[1752890139346,0.37739498,118180.0,118170.0,1.03387428]
[1752890139547,0.48373137,118180.0,118170.0,1.03387428]
[1752890140044,0.48373137,118180.0,118170.0,0.86475278]
[1752890140846,0.48373137,118180.0,118170.0,0.50395278]
[1752890141046,0.48373137,118180.0,118170.0,0.86475278]
[1752890143547,0.48373137,118180.0,118170.0,0.57347278]
[1752890143749,0.48373137,118180.0,118170.0,0.86471278]
[1752890146349,0.50060709,118180.0,118170.0,0.86471278]
[1752890147851,0.50060709,118180.0,118170.0,0.50391278]
[1752890148051,0.3942707,118180.0,118170.0,0.86471278]
[1752890148253,0.50060709,118180.0,118170.0,0.86471278]
[1752890149650,0.5766141,118180.0,118170.0,0.8343834]
[1752890149948,0.13801122,118180.0,118170.0,1.3681924]
[1752890150154,0.06183494,118180.0,118170.0,1.546649]
[1752890153349,0.12904494,118180.0,118170.0,1.546649]
[1752890153649,0.06821,118180.0,118170.0,1.546649]
[1752890154856,0.06821,118180.0,118170.0,1.841849]
[1752890156356,0.12901988,118180.0,118170.0,1.841849]
[1752890157657,0.12901988,118180.0,118170.0,1.90869579]
[1752890158052,0.06821,118180.0,118170.0,1.90869579]
[1752890158453,0.12900026,118180.0,118170.0,1.90869579]
[1752890159158,0.06821,118180.0,118170.0,1.90869579]
[1752890161755,0.1289867,118180.0,118170.0,1.90869579]
[1752890165657,0.06821,118180.0,118170.0,1.90869579]
[1752890166058,0.4829701,118180.0,118170.0,1.6593445]
[1752890166263,0.3006267,118180.0,118170.0,1.3682645]
[1752890166457,0.3006267,118180.0,118170.0,1.6593445]
[1752890166864,0.3006267,118180.0,118170.0,1.3641445]
[1752890169158,0.3006267,118180.0,118170.0,1.5464879]
[1752890170263,0.3006267,118180.0,118170.0,1.3641445]
[1752890170459,0.3006267,118180.0,118170.0,0.6425445]
[1752890170665,0.3006267,118180.0,118170.0,1.0033445]
[1752890173467,0.3006267,118180.0,118170.0,1.1856879]
[1752890176167,0.3006267,118180.0,118170.0,1.0033445]
[1752890176368,0.3006267,118180.0,118170.0,1.1856879]
[1752890177874,0.3006267,118180.0,118170.0,1.1856479]
[1752890178471,0.2373167,118180.0,118170.0,1.1856479]
[1752890178971,0.2485667,118180.0,118170.0,1.1856479]
[1752890179173,0.3006267,118180.0,118170.0,1.1856479]
[1752890179762,0.3006267,118180.0,118170.0,1.0033045]
[1752890180070,0.3006267,118180.0,118170.0,1.1856479]
[1752890180870,0.3614034,118180.0,118170.0,1.1856479]
[1752890181972,0.3006267,118180.0,118170.0,1.0033045]
[1752890187077,0.3006267,118180.0,118170.0,1.1856479]
[1752890188278,0.3614034,118180.0,118170.0,1.1856479]
[1752890188578,0.3006267,118180.0,118170.0,1.1856079]
[1752890189276,0.3006267,118180.0,118170.0,1.0032645]
[1752890196680,0.3614034,118180.0,118170.0,1.0032645]
[1752890199689,0.3006267,118180.0,118170.0,1.0032645]
[1752890199896,0.3006267,118180.0,118170.0,1.1856079]
[1752890203796,0.36156037,118180.0,118170.0,1.1856079]
[1752890205598,0.36156037,118180.0,118170.0,1.0032645]
[1752890205899,0.37680298,118180.0,118170.0,1.0032645]
[1752890207301,0.37680298,118180.0,118170.0,0.7122645]
[1752890207598,0.3006267,118180.0,118170.0,1.0031045]
[1752890207900,0.3006267,118180.0,118170.0,1.1854479]
[1752890208496,0.2485667,118180.0,118170.0,1.1854479]
[1752890210802,0.32473477,118180.0,118170.0,1.1854479]
[1752890211902,0.32473477,118180.0,118170.0,0.8207611]
[1752890212102,0.34299477,118180.0,118170.0,1.1854479]
[1752890212703,0.37373477,118180.0,118170.0,0.5299211]
[1752890212905,0.2975667,118180.0,118170.0,1.0030645]
[1752890213602,0.2975667,118180.0,118170.0,0.8207211]
[1752890213905,0.2975667,118180.0,118170.0,1.0030645]
[1752890215002,0.2975667,118180.0,118170.0,0.8207211]
[1752890215202,0.35850087,118180.0,118170.0,1.0030645]
[1752890215705,0.2975667,118180.0,118170.0,1.0030645]
[1752890216204,0.2975667,118180.0,118170.0,0.7122645]
[1752890216404,0.2975667,118180.0,118170.0,1.0030645]
[1752890216800,0.2204712,118170.0,118160.0,0.68403744]
[1752890217106,0.4803646,118170.0,118160.0,0.79638084]
[1752890217504,0.8411646,118170.0,118160.0,0.02803744]
[1752890217803,1.023508,118170.0,118160.0,0.31883744]
[1752890218004,1.19276401,118170.0,118160.0,0.0195229]
[1752890218200,1.19276401,118170.0,118160.0,0.002]
[1752890218409,0.31499115,118150.0,118140.0,0.37971579]
[1752890218596,0.49733455,118150.0,118140.0,0.85281919]
[1752890218796,0.49733455,118150.0,118140.0,0.86798441]
[1752890219105,0.55824062,118150.0,118140.0,0.86798441]
[1752890219406,0.49733455,118150.0,118140.0,0.86798441]
[1752890220006,0.49833455,118150.0,118140.0,0.86798441]
[1752890220912,0.49833455,118150.0,118140.0,0.80726543]
[1752890220913,0.31599115,118150.0,118140.0,0.80726543]
[1752890222210,0.38355836,118150.0,118140.0,0.80726543]
[1752890222711,0.44446443,118150.0,118140.0,0.80726543]
[1752890222909,0.44446443,118150.0,118140.0,0.68564101]
[1752890223104,0.38355836,118150.0,118140.0,0.68564101]
[1752890223711,0.44446443,118150.0,118140.0,0.68564101]
[1752890225212,0.44446443,118150.0,118140.0,0.80726543]
[1752890230113,0.44446443,118150.0,118140.0,0.68564101]
[1752890230310,0.44446443,118150.0,118140.0,0.80726543]
[1752890231112,0.38355836,118150.0,118140.0,0.80726543]
[1752890232611,0.31599115,118150.0,118140.0,0.80726543]
[1752890232805,0.31599115,118150.0,118140.0,0.68564101]
[1752890233003,0.37689722,118150.0,118140.0,0.80726543]
[1752890237519,0.37689722,118150.0,118140.0,0.68564101]
[1752890238818,0.37689722,118150.0,118140.0,0.97642953]
[1752890239011,0.37689722,118150.0,118140.0,0.80726543]
[1752890239618,0.37689722,118150.0,118140.0,0.97642953]
[1752890240013,0.37689722,118150.0,118140.0,0.80726543]
[1752890240413,0.37689722,118150.0,118140.0,0.44646543]
[1752890240613,0.37689722,118150.0,118140.0,0.80726543]
[1752890241413,0.37689722,118150.0,118140.0,0.97642953]
[1752890241613,0.37689722,118150.0,118140.0,0.80726543]
[1752890242819,0.37689722,118150.0,118140.0,0.44646543]
[1752890243020,0.55932483,118150.0,118140.0,0.86802862]
[1752890243216,0.55932483,118150.0,118140.0,0.50722862]
[1752890243814,0.55932483,118150.0,118140.0,0.03408101]
[1752890244014,0.74175244,118150.0,118140.0,0.32480101]
[1752890244309,0.49841876,118150.0,118140.0,0.32480101]
[1752890244918,0.49841876,118150.0,118140.0,0.03408101]
[1752890245121,0.49841876,118150.0,118140.0,0.32480101]
[1752890245321,0.56514825,118150.0,118140.0,0.32480101]
[1752890245514,0.56514825,118150.0,118140.0,0.03408101]
[1752890245819,0.56514825,118150.0,118140.0,0.32480101]
[1752890246518,0.64131632,118150.0,118140.0,0.32480101]
[1752890248322,0.57458683,118150.0,118140.0,0.32480101]
[1752890248622,0.57448923,118150.0,118140.0,0.32480101]
[1752890250518,0.49841876,118150.0,118140.0,0.32480101]
[1752890251217,0.49841876,118150.0,118140.0,0.30588522]
[1752890251417,0.49841876,118150.0,118140.0,0.29072]
[1752890252019,0.31599115,118150.0,118140.0,0.29072]
[1752890252219,0.49841876,118150.0,118140.0,0.29072]
[1752890252918,0.31599115,118150.0,118140.0,0.29072]
[1752890253124,0.49841876,118150.0,118140.0,0.29072]
[1752890254923,0.56603976,118150.0,118140.0,0.29072]
[1752890255323,0.38361215,118150.0,118140.0,0.29072]
[1752890255624,0.56603976,118150.0,118140.0,0.29072]
[1752890256822,0.56603976,118150.0,118140.0,0.30567092]
[1752890258125,0.67264512,118150.0,118140.0,0.30567092]
[1752890258527,0.67264512,118150.0,118140.0,0.19135758]
[1752890258918,0.56603976,118150.0,118140.0,0.19135758]
[1752890259716,0.56603976,118150.0,118140.0,0.17640666]
[1752890259921,0.38361215,118150.0,118140.0,0.17640666]
[1752890260118,0.56603976,118150.0,118140.0,0.17640666]
[1752890260325,0.56603976,118150.0,118130.0,0.54322761]
[1752890260528,0.76485117,118140.0,118130.0,0.65144]
[1752890260930,0.65824902,118140.0,118130.0,0.65144]
[1752890261630,0.76485117,118140.0,118130.0,0.65144]
[1752890262129,0.76485117,118140.0,118130.0,0.65244]
[1752890262323,0.76485117,118140.0,118130.0,0.66788299]
[1752890262629,0.76485117,118140.0,118130.0,0.30708299]
[1752890265730,0.65824902,118140.0,118130.0,0.30708299]
[1752890266432,0.7343926,118140.0,118130.0,0.30708299]
[1752890268135,0.36953738,118140.0,118130.0,0.30708299]
[1752890268334,0.7343926,118140.0,118130.0,0.4895106]
[1752890268932,0.55196499,118140.0,118130.0,0.4895106]
[1752890269138,0.32111738,118140.0,118130.0,0.6586888]
[1752890269333,0.32111738,118140.0,118130.0,0.84111641]
[1752890269536,0.32111738,118140.0,118130.0,0.6586888]
[1752890269736,0.32111738,118140.0,118130.0,1.20191641]
[1752890269937,0.2449738,118140.0,118130.0,1.0194888]
[1752890271735,0.2449738,118140.0,118130.0,0.83706119]
[1752890272033,0.2449738,118140.0,118130.0,1.0194888]
[1752890272339,0.32111738,118140.0,118130.0,1.0194888]
[1752890273341,0.50354499,118140.0,118130.0,1.0194888]
[1752890275138,0.33929738,118140.0,118130.0,1.0194888]
[1752890278438,0.32111738,118140.0,118130.0,1.0194888]
[1752890278641,0.29505149,118140.0,118130.0,1.49711641]
[1752890278846,0.06092769,118140.0,118130.0,1.49711641]
[1752890279549,0.06092769,118140.0,118130.0,1.92954402]
[1752890279749,0.08456235,118150.0,118140.0,0.1691639]
[1752890279750,0.31463974,118150.0,118140.0,0.1691639]
[1752890280054,0.31463974,118150.0,118140.0,0.89481912]
[1752890280055,0.32173205,118150.0,118140.0,0.89481912]
[1752890280455,0.25411105,118150.0,118140.0,0.89481912]
[1752890280755,0.25511105,118150.0,118140.0,0.89481912]
[1752890280956,0.31603874,118150.0,118140.0,0.89481912]
[1752890281351,0.25511105,118150.0,118140.0,0.89481912]
[1752890282158,0.25511105,118150.0,118140.0,1.19001912]
[1752890282456,0.08596135,118150.0,118140.0,1.19001912]
[1752890283256,0.25511085,118150.0,118140.0,1.19001912]
[1752890283955,0.08596135,118150.0,118140.0,1.19001912]
[1752890284353,0.25511085,118150.0,118140.0,1.19001912]
[1752890284954,0.25411085,118150.0,118140.0,1.19201912]
[1752890285356,0.08496135,118150.0,118140.0,1.19201912]
[1752890285855,0.25411085,118150.0,118140.0,1.19401912]
[1752890287355,0.25411085,118150.0,118140.0,1.55481912]
[1752890287956,0.08496135,118150.0,118140.0,1.55481912]
[1752890288157,0.25411095,118150.0,118140.0,1.55481912]
[1752890288657,0.08496135,118150.0,118140.0,1.55481912]
[1752890288852,0.25411095,118150.0,118140.0,1.55481912]
[1752890289761,0.25411095,118150.0,118140.0,1.1899639]
[1752890289955,0.25411095,118150.0,118140.0,1.55481912]
[1752890291053,0.08496135,118150.0,118140.0,1.55481912]
[1752890293061,0.25411095,118150.0,118140.0,1.1899639]
[1752890293264,0.25411095,118150.0,118140.0,1.55481912]
[1752890293464,0.26548095,118150.0,118140.0,1.55481912]
[1752890295560,0.26548095,118150.0,118140.0,1.57350925]
[1752890296064,0.31481095,118150.0,118140.0,1.86390925]
[1752890296561,0.37573864,118150.0,118140.0,1.86390925]
[1752890297162,0.37573864,118150.0,118140.0,1.57350925]
[1752890297468,0.31481095,118150.0,118140.0,1.86190925]
[1752890297668,0.49723856,118150.0,118140.0,1.49705403]
[1752890297869,0.55816625,118150.0,118140.0,1.67948164]
[1752890298567,0.55816625,118150.0,118140.0,1.67748164]
[1752890298767,0.55816625,118150.0,118140.0,1.67848164]
[1752890299366,0.37573864,118150.0,118140.0,1.86090925]
[1752890299868,0.37573864,118150.0,118140.0,1.56570925]
[1752890300970,0.31481095,118150.0,118140.0,1.44405609]
[1752890301170,0.39095453,118150.0,118140.0,1.32245506]
[1752890302772,0.39095453,118150.0,118140.0,1.20085403]
[1752890302971,0.39095453,118150.0,118140.0,1.32245506]
[1752890305876,0.3756346,118150.0,118140.0,1.32245506]
[1752890306675,0.3756346,118150.0,118140.0,1.44405609]
[1752890307271,0.31481095,118150.0,118140.0,1.44405609]
[1752890307471,0.39095453,118150.0,118140.0,1.44405609]
[1752890309478,0.39095453,118150.0,118140.0,1.32245506]
[1752890309980,0.45181826,118150.0,118140.0,1.32245506]
[1752890310278,0.37567468,118150.0,118140.0,1.32245506]
[1752890310882,0.31481095,118150.0,118140.0,1.32245506]
[1752890311381,0.37566759,118150.0,118140.0,1.32245506]
[1752890311578,0.44469744,118150.0,118140.0,1.32245506]
[1752890311777,0.31481095,118150.0,118140.0,1.32245506]
[1752890312280,0.37566738,118150.0,118140.0,1.32245506]
[1752890312981,0.37566738,118150.0,118140.0,0.60085506]
[1752890313175,0.31481095,118150.0,118140.0,0.96165506]
[1752890315473,0.31481095,118150.0,118140.0,0.50209116]
[1752890315673,0.43641198,118150.0,118140.0,0.84001393]
[1752890315880,0.51255556,118150.0,118140.0,0.96161496]
[1752890317586,0.51255556,118150.0,118140.0,0.67085013]
[1752890318379,0.51255556,118150.0,118140.0,0.65216]
[1752890319085,0.51355556,118150.0,118140.0,0.65216]
[1752890319286,0.51355556,118150.0,118140.0,0.001]
[1752890319482,0.51355556,118150.0,118140.0,0.29132]
[1752890320382,0.51355556,118150.0,118140.0,0.29032]
[1752890321084,0.57442326,118150.0,118140.0,0.29032]
[1752890321289,0.2162138,118140.0,118130.0,0.72788632]
[1752890321483,0.65711126,118140.0,118130.0,1.01820632]
[1752890321993,0.65711126,118140.0,118130.0,0.83573759]
[1752890322287,0.65711126,118140.0,118130.0,1.01820632]
[1752890322288,0.47464253,118140.0,118130.0,1.01820632]
[1752890323492,0.47464253,118140.0,118130.0,1.01920632]
[1752890323789,0.55078611,118140.0,118130.0,1.01920632]
[1752890325085,0.55078611,118140.0,118130.0,0.83673759]
[1752890325284,0.36831738,118140.0,118130.0,1.01920632]
[1752890325484,0.42919709,118140.0,118130.0,1.01920632]
[1752890325689,0.35305351,118140.0,118130.0,1.01920632]
[1752890326186,0.53552224,118140.0,118130.0,1.01920632]
[1752890328092,0.53552224,118140.0,118130.0,0.83673759]
[1752890328392,0.53552224,118140.0,118130.0,1.01920992]
[1752890328393,0.47464253,118140.0,118130.0,1.01920992]
[1752890329391,0.45137253,118140.0,118130.0,1.01920992]
[1752890329592,0.47464253,118140.0,118130.0,1.01920992]
[1752890329893,0.2921738,118140.0,118130.0,1.01920992]
[1752890331193,0.12570971,118140.0,118130.0,1.22017848]
[1752890331493,0.03651,118140.0,118130.0,1.22017848]
[1752890331795,0.2339938,118140.0,118130.0,1.22017848]
[1752890332197,0.06483,118140.0,118130.0,1.22017848]
[1752890332796,0.2339938,118140.0,118130.0,1.22017848]
[1752890333592,0.2451238,118140.0,118130.0,1.22017848]
[1752890334796,0.2451238,118140.0,118130.0,1.58097848]
[1752890334996,0.2451238,118140.0,118130.0,1.33764489]
[1752890335393,0.2451238,118140.0,118130.0,1.63284489]
[1752890336696,0.2451238,118140.0,118130.0,1.75444876]
[1752890337397,0.2682338,118140.0,118130.0,1.46412876]
[1752890337593,0.35408351,118140.0,118130.0,1.63284489]
[1752890337993,0.35408351,118140.0,118130.0,1.51124102]
[1752890338192,0.35408351,118140.0,118130.0,1.63284489]
[1752890339697,0.34891351,118140.0,118130.0,1.63284489]
[1752890339897,0.30600351,118140.0,118130.0,1.63284489]
[1752890340197,0.2339938,118140.0,118130.0,1.63284489]
[1752890340696,0.2449738,118140.0,118130.0,1.63284489]
[1752890340900,0.30585351,118140.0,118130.0,1.63284489]
[1752890341096,0.2449738,118140.0,118130.0,1.63284489]
[1752890342597,0.2878838,118140.0,118130.0,1.63284489]
[1752890343294,0.35393351,118140.0,118130.0,1.34252489]
[1752890343489,0.2930538,118140.0,118130.0,1.63284489]
[1752890346000,0.35393351,118140.0,118130.0,1.63284489]
[1752890351303,0.35393351,118140.0,118130.0,1.34252489]
[1752890351504,0.35393351,118140.0,118130.0,1.63284489]
[1752890352713,0.35393351,118140.0,118130.0,1.61434506]
[1752890353401,0.35393351,118140.0,118130.0,0.89274506]
[1752890353602,0.35393351,118140.0,118130.0,1.61434506]